bitfinex/quotes_ETHUSD_20241212
["timestamp","ask_amount","ask_price","bid_price","bid_amount"]
[1734046626306,0.7822,3872.3,3871.7,6.468]
[1734046626505,0.7822,3872.3,3871.7,9.05084]
[1734046627172,0.7822,3872.3,3871.7,6.468]
[1734046627371,0.7822,3872.3,3871.7,7.54771316]
[1734046628236,0.55,3872.2,3871.7,6.468]
[1734046628454,0.68322,3872.2,3871.7,6.468]
[1734046628604,0.55,3872.2,3871.7,6.468]
[1734046630348,3.07,3872.8,3871.8,3.0]
[1734046630498,1.56979012,3872.7,3872.0,2.58263]
[1734046630845,0.55,3872.5,3872.1,2.58257]
[1734046631295,0.55,3872.6,3872.1,2.58257]
[1734046631492,0.7794,3872.7,3872.2,2.58246]
[1734046631793,0.7794,3872.7,3872.1,2.58251]
[1734046632193,0.7794,3872.7,3871.8,4.07971316]
[1734046632371,0.7794,3872.7,3871.8,6.66246316]
[1734046632558,0.03228057,3872.6,3871.8,4.07971316]
[1734046632692,0.7794,3872.7,3872.0,2.58263]
[1734046633349,1.07663604,3873.1,3872.2,3.0]
[1734046633350,2.41103266,3873.1,3872.2,3.0]
[1734046633557,3.07,3874.0,3873.5,2.5816]
[1734046633843,0.7573,3874.2,3873.8,2.58143]
[1734046633996,0.7573,3874.2,3873.6,1.08132373]
[1734046634193,0.7573,3874.2,3873.5,2.58158]
[1734046634472,0.8071,3874.0,3872.9,1.08132373]
[1734046634608,0.8071,3873.6,3872.6,3.0]
[1734046634945,0.03227659,3873.5,3872.6,3.0]
[1734046635294,0.37435825,3873.5,3872.6,3.0]
[1734046635498,0.55,3873.3,3872.4,4.08132373]
[1734046635735,0.55,3873.1,3872.4,4.08132373]
[1734046635898,0.55,3873.1,3872.5,3.0]
[1734046636100,0.55,3873.3,3872.5,3.0]
[1734046636736,0.55,3873.3,3872.7,3.0]
[1734046636938,0.55,3873.3,3872.7,2.58216]
[1734046637296,0.55,3873.3,3872.5,4.49219066]
[1734046637651,0.55,3873.3,3872.4,1.08132373]
[1734046637813,0.55,3873.3,3872.2,1.08132373]
[1734046637814,0.55,3872.9,3872.2,1.08132373]
[1734046638521,0.55,3872.9,3872.2,3.66382373]
[1734046638705,0.55,3872.9,3872.3,3.0]
[1734046638901,0.58227904,3872.9,3872.3,3.0]
[1734046640232,0.58227904,3872.9,3872.1,4.08132373]
[1734046640668,0.55,3872.9,3872.1,1.08132373]
[1734046640870,0.54689266,3872.9,3872.3,3.0]
[1734046641227,0.54689266,3872.9,3872.1,1.08132373]
[1734046642048,0.03228066,3872.8,3872.1,1.08132373]
[1734046642261,0.03228066,3872.8,3872.0,5.58263]
[1734046642262,0.03228066,3872.8,3872.0,6.66395373]
[1734046642651,0.03228066,3872.8,3872.0,4.08132373]
[1734046642863,0.54689266,3872.9,3872.0,4.08132373]
[1734046643267,1.28161118,3872.9,3872.0,4.08132373]
[1734046643817,1.24933004,3872.9,3872.0,4.08132373]
[1734046644099,0.8282,3872.8,3872.0,4.08132373]
[1734046644239,0.55,3872.7,3872.0,4.08132373]
[1734046645193,0.55,3872.7,3872.1,2.58254]
[1734046645945,0.55,3872.7,3872.0,4.08132373]
[1734046646536,0.99482,3872.7,3872.0,1.08132373]
[1734046646743,1.02690252,3872.7,3871.9,1.08132373]
[1734046647014,0.55,3872.5,3871.9,1.08132373]
[1734046647252,0.7964,3872.3,3871.7,6.468]
[1734046647491,0.03228482,3872.2,3871.7,6.468]
[1734046647662,0.7964,3872.3,3871.7,6.468]
[1734046647849,0.38664,3872.2,3871.7,6.468]
[1734046648249,0.7964,3872.3,3871.7,6.468]
[1734046648709,0.7964,3872.1,3871.7,6.468]
[1734046648878,2.58277,3871.8,3871.7,6.468]
[1734046649137,3.37917,3871.8,3871.7,6.468]
[1734046649383,1.3464,3871.8,3871.7,6.468]
[1734046649553,3.92917,3871.8,3871.7,6.468]
[1734046649757,4.71795903,3871.8,3871.7,6.468]
[1734046649957,4.95765386,3871.8,3871.7,6.468]
[1734046650177,4.71795903,3871.8,3871.7,6.468]
[1734046652127,2.13518903,3871.8,3871.7,6.468]
[1734046652474,1.3464,3871.8,3871.7,6.468]
[1734046653344,4.4164,3871.8,3871.7,6.468]
[1734046654310,6.99917,3871.8,3871.7,6.468]
[1734046655817,4.4164,3871.8,3871.7,6.468]
[1734046662284,3.07,3871.8,3871.7,6.468]
[1734046664407,7.35714867,3871.8,3871.7,6.468]
[1734046665935,6.97077,3871.8,3871.7,6.468]
[1734046666337,4.388,3871.8,3871.7,6.468]
[1734046668132,4.42028811,3871.8,3871.7,6.468]
[1734046668350,4.388,3871.8,3871.7,6.468]
[1734046669291,4.388,3871.8,3871.7,6.218]
[1734046669623,3.62,3871.8,3871.7,6.218]
[1734046671247,0.55,3871.9,3871.7,6.218]
[1734046671807,3.07,3872.0,3871.7,6.218]
[1734046671960,3.07,3872.3,3871.7,7.098103]
[1734046672251,3.07,3872.3,3871.8,0.7609]
[1734046672805,0.8198,3872.1,3871.7,6.218]
[1734046673028,0.03228649,3872.0,3871.7,6.218]
[1734046673211,0.8198,3872.1,3871.7,6.218]
[1734046673744,0.55,3872.0,3871.7,6.218]
[1734046673944,0.58228648,3872.0,3871.7,6.218]
[1734046674249,0.55,3872.0,3871.7,6.218]
[1734046674402,0.58228647,3872.0,3871.7,6.218]
[1734046674936,0.58228646,3872.0,3871.7,6.218]
[1734046675431,0.55,3872.0,3871.7,6.218]
[1734046675835,1.3713,3871.8,3871.7,6.218]
[1734046676036,7.02407,3871.8,3871.7,6.218]
[1734046676205,7.45580618,3871.8,3871.7,6.218]
[1734046679028,9.79541425,3871.8,3871.7,3.69869726]
[1734046679352,10.89316369,3871.8,3871.7,3.69869726]
[1734046679555,11.08510623,3871.8,3871.7,1.78540083]
[1734046679957,3.62,3871.2,3870.2,0.7803]
[1734046680200,2.58351,3870.7,3870.2,0.7803]
[1734046680357,0.58229847,3870.6,3870.2,0.7803]
[1734046681070,0.55,3870.6,3870.2,0.7803]
[1734046681278,0.55,3870.9,3870.2,0.7803]
[1734046681599,3.59720484,3870.9,3870.2,0.7803]
[1734046681772,0.55,3870.9,3870.2,0.7803]
[1734046682884,0.55,3870.9,3869.3,0.7803]
[1734046682885,0.55,3870.3,3869.3,0.7803]
[1734046683092,0.03230092,3870.2,3869.3,0.7803]
[1734046683790,0.55,3870.1,3869.3,0.7803]
[1734046684095,0.03230288,3870.0,3869.3,0.7803]
[1734046684747,0.55,3869.9,3869.3,0.7803]
[1734046685150,3.62,3870.0,3869.3,0.7803]
[1734046685520,3.62,3870.0,3869.3,3.36474]
[1734046685865,3.62,3870.0,3869.3,3.701214]
[1734046686753,3.62,3870.0,3869.3,1.116774]
[1734046687107,3.62,3870.0,3869.5,2.58424]
[1734046687605,3.62,3870.0,3869.6,0.7715]
[1734046687606,3.07,3870.0,3869.6,0.7715]
[1734046689324,0.55,3870.3,3869.6,0.7715]
[1734046689523,0.55,3870.0,3869.1,3.0]
[1734046689805,0.58230436,3870.0,3869.1,3.0]
[1734046689999,0.58230436,3870.0,3869.0,3.35614]
[1734046690000,0.58230436,3870.0,3869.0,0.7715]
[1734046690152,0.7186948,3870.0,3869.0,0.7715]
[1734046690356,2.58411,3869.8,3869.0,0.7715]
[1734046690685,0.55,3869.5,3869.0,0.7715]
[1734046690992,0.55,3869.3,3868.4,0.824]
[1734046691147,0.55,3869.3,3868.5,0.34091]
[1734046691809,0.55,3869.3,3868.5,2.92587]
[1734046691992,0.55,3869.3,3868.5,2.58496]
[1734046692865,0.55,3869.3,3868.6,2.58485]
[1734046693176,0.55,3869.3,3868.4,3.40902]
[1734046693378,0.03230975,3869.2,3868.4,0.824]
[1734046693678,0.55,3869.3,3868.4,3.824]
[1734046693917,0.55,3869.3,3868.5,3.0]
[1734046694346,0.55,3869.3,3868.6,2.58489]
[1734046694874,0.55,3869.3,3868.4,1.2064]
[1734046695074,0.55,3869.3,3868.5,3.0]
[1734046695949,3.07,3869.4,3868.4,3.824]
[1734046696362,3.07,3869.4,3868.7,2.58483]
[1734046696575,3.07,3869.4,3868.7,3.225713]
[1734046696775,3.07,3869.4,3868.8,2.58477]
[1734046697295,3.07,3869.4,3868.7,0.640883]
[1734046697477,3.07,3869.4,3868.9,2.58471]
[1734046698175,0.03230847,3870.2,3869.0,2.58464]
[1734046698176,0.55,3869.9,3869.0,2.58464]
[1734046699174,3.62,3869.9,3868.9,0.1447783]
[1734046699597,3.62,3869.9,3869.2,2.5845]
[1734046700240,0.03230411,3869.8,3868.9,0.1447783]
[1734046700383,0.03230411,3869.8,3869.0,2.58464]
[1734046700578,0.03230411,3869.8,3869.1,0.33068776]
[1734046701133,0.03230411,3869.8,3869.0,2.58464]
[1734046701134,3.13433,3869.5,3868.5,0.7803]
[1734046701427,0.55,3869.3,3868.5,0.7803]
[1734046701623,0.55,3869.3,3868.2,0.7803]
[1734046701624,0.55,3869.1,3868.2,0.7803]
[1734046701921,0.03231198,3869.0,3868.2,0.7803]
[1734046702427,0.55,3868.9,3868.2,0.7803]
[1734046702624,0.03231386,3868.8,3867.8,3.3657]
[1734046702797,0.8201,3868.6,3867.8,3.3657]
[1734046702999,0.55,3868.4,3867.3,2.58574]
[1734046703203,0.55,3868.2,3867.3,2.58574]
[1734046703409,0.03231877,3868.1,3867.3,2.58574]
[1734046704315,0.03231877,3868.1,3867.1,0.7803]
[1734046704316,0.55,3868.0,3867.1,0.7803]
[1734046704621,0.55,3868.1,3867.3,3.0]
[1734046704838,0.03231987,3867.9,3867.3,3.0]
[1734046705016,0.03231987,3867.9,3867.3,5.58575]
[1734046705325,0.55,3868.2,3867.4,2.58569]
[1734046706597,0.55,3868.2,3867.5,2.58563]
[1734046706802,3.07,3868.4,3867.7,2.58549]
[1734046707332,0.85241673,3868.6,3867.7,2.58549]
[1734046707333,0.03231627,3868.3,3867.7,2.58549]
[1734046708355,0.03231726,3868.4,3867.7,2.58549]
[1734046708502,0.03231726,3868.4,3867.3,2.33960807]
[1734046708701,0.55,3868.5,3867.4,0.67177032]
[1734046708904,0.55,3868.5,3867.8,2.58543]
[1734046709196,0.55,3868.3,3867.5,2.58558]
[1734046709417,0.69024162,3868.3,3867.5,2.58558]
[1734046710204,3.76024162,3868.3,3867.2,0.64835483]
[1734046710411,3.62,3868.3,3867.3,2.58578]
[1734046710663,3.62,3868.3,3867.7,2.58548]
[1734046711144,0.55,3868.1,3867.7,2.58548]
[1734046711721,3.07,3868.3,3867.5,3.0]
[1734046711905,0.7503,3868.5,3868.2,2.58518]
[1734046712218,3.07,3869.1,3868.1,2.58518]
[1734046712219,0.7503,3868.8,3868.1,2.58518]
[1734046712415,0.7503,3868.8,3868.2,0.336788]
[1734046712629,0.7503,3868.8,3868.2,2.58514]
[1734046713345,0.55,3868.7,3868.2,2.58514]
[1734046713553,0.7503,3868.8,3868.6,2.58489]
[1734046713718,3.07,3869.1,3868.6,2.58489]
[1734046714555,3.07,3869.1,3867.9,1.29369699]
[1734046714556,3.07,3869.1,3868.4,2.58502]
[1734046714701,3.07,3869.1,3868.5,2.58497]
[1734046716299,0.58231092,3869.1,3868.3,2.5851]
[1734046716505,0.58231092,3869.1,3868.4,2.58503]
[1734046716713,0.58231092,3869.1,3867.4,0.7677]
[1734046716714,0.7569,3868.8,3867.4,0.7677]
[1734046716874,0.55,3868.7,3868.1,2.58523]
[1734046719070,0.58231466,3868.7,3867.9,2.58538]
[1734046719273,0.58231466,3868.7,3867.7,3.0]
[1734046719466,0.58231466,3868.7,3867.4,3.7677]
[1734046719467,0.55,3868.4,3867.4,0.7677]
[1734046719719,1.3774,3868.2,3867.3,2.58578]
[1734046719899,0.03231908,3868.1,3867.3,2.58578]
[1734046720268,1.3774,3868.2,3867.3,2.58578]
[1734046720473,2.1558166,3868.2,3867.1,3.3389]
[1734046720754,4.7409966,3868.2,3867.1,3.3389]
[1734046721186,2.1558166,3868.2,3867.1,3.3389]
[1734046721516,2.1558166,3868.2,3867.1,2.5859]
[1734046721816,0.55,3868.0,3867.2,2.58584]
[1734046722832,0.55,3868.0,3867.5,2.5856]
[1734046723031,0.55,3868.1,3867.5,2.5856]
[1734046723169,0.75475897,3868.1,3867.2,2.58578]
[1734046723375,0.55,3868.1,3867.2,2.58578]
[1734046723801,0.55,3868.1,3867.3,2.58574]
[1734046725274,0.55,3868.1,3867.1,3.0]
[1734046725275,0.0323198,3868.0,3867.1,5.58591]
[1734046727514,0.55,3868.1,3866.8,3.8064]
[1734046727717,0.55,3868.1,3867.2,2.5858]
[1734046727892,0.99474,3868.1,3867.2,2.5858]
[1734046729124,0.03231975,3868.0,3867.2,2.5858]
[1734046729316,0.99474,3868.1,3867.2,2.5858]
[1734046731805,0.99474,3868.1,3867.3,2.58577]
[1734046732258,0.99474,3868.1,3867.3,2.33577]
[1734046733362,0.99474,3868.1,3867.3,2.58575]
[1734046733509,0.99474,3868.1,3867.0,1.07839381]
[1734046733710,0.99474,3868.1,3867.1,0.92224193]
[1734046734406,0.8274,3868.2,3867.8,2.58544]
[1734046734817,0.8274,3868.2,3867.9,2.58538]
[1734046735022,3.07,3868.4,3867.9,2.58538]
[1734046735023,3.8661,3868.4,3867.9,2.58538]
[1734046737254,0.7789,3869.1,3868.1,2.5852]
[1734046737454,0.55,3869.0,3868.1,2.5852]
[1734046737627,1.01848752,3869.1,3868.2,2.58514]
[1734046737823,0.7789,3869.1,3868.2,2.58514]
[1734046738253,0.7789,3869.1,3867.9,1.41361181]
[1734046738254,1.422235,3869.1,3868.1,2.58522]
[1734046738577,1.422235,3869.1,3867.8,4.07839381]
[1734046738578,3.39587209,3869.0,3867.8,1.07839381]
[1734046738766,0.55,3868.9,3867.7,1.07839381]
[1734046738926,0.03231209,3868.8,3867.7,1.07839381]
[1734046739132,1.26092071,3868.9,3867.7,1.07839381]
[1734046739133,1.3289,3868.7,3867.7,3.66384381]
[1734046739326,1.3289,3868.7,3867.8,3.0]
[1734046739630,0.55,3868.5,3867.8,3.0]
[1734046739767,0.7789,3868.7,3868.0,2.58531]
[1734046740361,0.7789,3868.7,3867.7,1.07839381]
[1734046740576,0.7789,3868.7,3868.0,2.58525]
[1734046742801,0.7789,3868.7,3867.8,1.07839381]
[1734046742941,0.03231341,3868.6,3868.0,3.0]
[1734046743557,0.55,3868.3,3867.4,1.07839381]
[1734046743717,1.3278,3868.1,3867.4,1.07839381]
[1734046743918,0.67678507,3868.2,3867.2,1.07839381]
[1734046743919,1.3278,3867.9,3867.2,1.07839381]
[1734046744148,0.03232121,3867.8,3867.1,1.07839381]
[1734046744697,1.3278,3867.9,3867.1,1.07839381]
[1734046744987,1.78354457,3867.9,3867.1,3.66430381]
[1734046745276,1.78354457,3867.9,3867.2,3.82839381]
[1734046745635,0.03232098,3867.8,3867.2,0.82839381]
[1734046745992,0.7778,3867.6,3866.9,1.61759072]
[1734046746163,0.58232391,3867.5,3866.8,1.61759072]
[1734046746337,0.58232391,3867.5,3866.7,4.61759072]
[1734046746773,0.58232391,3867.5,3866.7,3.0]
[1734046747281,0.58232391,3867.5,3866.7,4.61759072]
[1734046747282,0.55,3867.5,3866.7,4.61759072]
[1734046747586,0.7778,3867.4,3866.7,4.61759072]
[1734046748245,0.7778,3867.4,3866.6,2.58623]
[1734046748246,0.55,3867.3,3866.6,1.61759072]
[1734046748449,0.7778,3867.0,3866.4,1.61759072]
[1734046748643,0.81012731,3867.0,3866.4,3.20099763]
[1734046748845,0.7778,3867.0,3866.5,2.58631]
[1734046750346,0.7778,3867.0,3866.3,1.61759072]
[1734046750593,0.0323273,3866.9,3866.4,3.0]
[1734046750795,0.0323273,3866.9,3866.2,1.61759072]
[1734046750796,0.13601273,3866.8,3866.2,1.61759072]
[1734046751108,0.7778,3866.7,3866.1,1.61759072]
[1734046751314,0.7778,3866.7,3865.9,2.58671]
[1734046751315,0.03232821,3866.6,3865.9,4.20430072]
[1734046751453,0.03232821,3866.6,3865.8,1.61759072]
[1734046751454,0.7778,3866.5,3865.8,1.61759072]
[1734046751646,0.7778,3866.5,3865.8,5.78683347]
[1734046751853,0.03233013,3866.4,3865.8,2.58677]
[1734046752282,0.7778,3866.5,3865.8,2.58677]
[1734046752399,0.7778,3866.5,3865.6,1.61759072]
[1734046752601,0.7778,3866.5,3865.7,2.30808936]
[1734046753541,0.7778,3866.5,3865.9,2.5867]
[1734046754098,0.7778,3866.5,3865.6,4.61759072]
[1734046754304,0.7778,3866.5,3866.0,2.58664]
[1734046754905,3.07,3867.2,3866.4,2.58638]
[1734046755105,0.826,3867.1,3866.1,1.8413843]
[1734046755308,0.826,3867.1,3866.1,4.8413843]
[1734046755513,0.826,3867.1,3866.2,5.0111082]
[1734046755870,0.826,3867.1,3866.3,1.0806843]
[1734046756351,0.826,3867.1,3866.6,2.58625]
[1734046757550,0.826,3867.1,3866.2,7.5975782]
[1734046757852,0.826,3867.1,3866.7,2.58615]
[1734046758211,0.826,3867.1,3866.5,2.58631]
[1734046758607,0.826,3867.1,3866.3,5.06035178]
[1734046758854,0.826,3867.1,3866.3,3.97966748]
[1734046759109,0.826,3867.1,3867.0,2.58598]
[1734046759220,0.7533,3867.4,3867.1,2.58591]
[1734046759752,0.7533,3867.8,3867.3,2.58578]
[1734046759960,0.7533,3867.8,3867.1,2.5859]
[1734046760105,0.7533,3867.8,3866.8,0.7978]
[1734046760106,0.7533,3867.8,3867.3,2.58571]
[1734046760355,0.7533,3867.8,3867.4,2.58571]
[1734046763057,0.7533,3867.8,3867.5,2.58559]
[1734046763878,0.7533,3867.8,3867.6,2.58553]
[1734046764334,0.7533,3867.8,3867.2,2.58585]
[1734046764691,0.7533,3867.8,3867.2,0.62524443]
[1734046765030,0.7533,3867.8,3867.5,2.58564]
[1734046765416,0.7533,3867.8,3867.3,2.58577]
[1734046765640,0.7533,3867.8,3867.4,2.58569]
[1734046766577,0.7533,3867.8,3867.0,1.0806843]
[1734046766578,0.7764,3868.0,3867.5,2.58564]
[1734046769220,0.80871805,3868.0,3867.1,3.0]
[1734046769422,0.80871805,3868.0,3867.2,2.58581]
[1734046769761,0.55,3867.9,3867.1,3.0]
[1734046769952,0.7725,3867.8,3867.2,3.0]
[1734046770566,0.7725,3867.8,3867.2,2.58578]
[1734046770723,0.7725,3867.8,3867.3,2.58576]
[1734046771138,0.7725,3867.8,3867.0,1.0806843]
[1734046771684,0.7725,3867.8,3867.6,2.58552]
[1734046772040,3.07,3868.0,3867.6,2.58552]
[1734046773149,3.07,3868.0,3867.7,2.5855]
[1734046773364,0.7736,3868.1,3867.7,2.5855]
[1734046774555,0.7736,3868.1,3867.4,1.9133843]
[1734046774795,1.3236,3868.7,3867.9,2.58532]
[1734046775660,1.3236,3868.7,3868.0,2.58528]
[1734046775866,1.3236,3868.7,3867.8,2.58544]
[1734046776044,0.55,3868.5,3867.8,2.58544]
[1734046776879,0.58231539,3868.5,3867.7,2.58551]
[1734046777085,0.7812,3868.2,3867.4,1.0806843]
[1734046777292,0.0323181,3868.1,3867.2,4.0806843]
[1734046777583,0.7812,3868.0,3867.3,2.58573]
[1734046778179,0.7812,3868.0,3867.1,4.8577843]
[1734046778180,0.7812,3868.0,3867.4,2.58571]
[1734046778956,0.7812,3868.0,3867.2,1.0806843]
[1734046779301,0.55,3867.7,3867.0,3.0]
[1734046779480,0.7812,3867.4,3866.7,3.6668543]
[1734046779692,0.81352464,3867.4,3866.7,2.58617]
[1734046779885,0.7812,3867.4,3866.7,2.58617]
[1734046780215,0.7812,3867.4,3866.7,3.6668543]
[1734046780504,0.7812,3867.4,3866.8,2.5861]
[1734046780700,0.7812,3867.4,3866.9,3.0]
[1734046781607,0.7812,3867.4,3867.1,2.58589]
[1734046781810,0.7812,3867.4,3866.7,1.0806843]
[1734046781811,3.07,3867.9,3866.9,1.74736273]
[1734046782026,3.07,3867.9,3867.1,2.5859]
[1734046782027,0.7812,3867.8,3867.1,2.5859]
[1734046782658,0.7812,3867.8,3866.9,3.25270843]
[1734046782897,1.117845,3867.8,3866.9,2.58603]
[1734046783854,1.117845,3867.8,3867.0,2.58598]
[1734046783999,0.7812,3867.8,3867.0,2.58598]
[1734046784906,0.7812,3867.8,3866.8,1.0806843]
[1734046785093,0.7812,3867.8,3867.1,2.58591]
[1734046786819,0.7812,3867.8,3866.9,1.0806843]
[1734046787124,0.7812,3867.8,3867.0,0.5698275]
[1734046787273,0.7812,3867.8,3867.0,3.1557875]
[1734046787984,0.7812,3867.8,3867.2,2.58578]
[1734046788183,0.7812,3867.8,3867.3,2.58574]
[1734046788383,0.7812,3867.8,3867.3,3.08649518]
[1734046788576,0.7812,3867.8,3867.3,2.58574]
[1734046789969,0.7812,3867.8,3867.0,1.10330095]
[1734046790372,0.7812,3867.8,3867.0,0.02261665]
[1734046790884,0.37653628,3868.4,3867.0,0.02261665]
[1734046790885,3.40755436,3867.7,3867.0,0.02261665]
[1734046791022,0.55,3867.5,3867.0,0.02261665]
[1734046791231,0.7764,3867.3,3867.0,0.02261665]
[1734046791428,0.03232506,3867.2,3867.0,0.02261665]
[1734046791696,0.8087254,3867.3,3867.0,0.02261665]
[1734046791837,0.7764,3867.3,3867.0,0.02261665]
[1734046792976,0.7764,3867.3,3867.0,2.60856665]
[1734046793934,0.7764,3867.3,3867.0,0.02261665]
[1734046799448,1.01996894,3867.8,3867.0,2.60858665]
[1734046799656,0.55,3867.7,3867.2,2.58583]
[1734046799843,0.55,3867.7,3867.0,1.10330095]
[1734046800078,0.55,3867.7,3867.1,1.0806843]
[1734046800390,0.55,3867.7,3867.0,3.68928095]
[1734046800705,1.05708541,3867.7,3867.1,1.0806843]
[1734046800882,0.55,3867.7,3867.1,1.0806843]
[1734046802584,0.7801,3867.6,3867.2,1.0806843]
[1734046802759,0.7801,3867.6,3867.3,2.58576]
[1734046802965,3.07,3867.8,3867.5,2.58563]
[1734046803203,3.07,3867.8,3867.5,3.6663143]
[1734046803423,0.7801,3867.9,3867.5,3.6663143]
[1734046804373,0.7801,3867.9,3867.5,1.0806843]
[1734046805222,0.7801,3867.9,3867.6,1.0806843]
[1734046805798,0.7801,3867.9,3867.4,4.20330072]
[1734046805799,0.7801,3867.9,3867.5,1.0806843]
[1734046807069,0.7801,3867.9,3867.6,1.0806843]
[1734046807287,0.7801,3867.9,3867.5,3.6663243]
[1734046807477,3.07,3868.3,3867.5,3.6663243]
[1734046807672,1.3301,3868.2,3867.6,1.0806843]
[1734046807875,1.3301,3868.2,3867.5,3.6663243]
[1734046808298,1.3301,3868.2,3867.5,1.0806843]
[1734046808523,1.77011,3868.2,3867.5,1.0806843]
[1734046810013,1.77011,3868.2,3867.6,1.0806843]
[1734046810698,1.77011,3868.2,3867.5,1.0806843]
[1734046812146,1.77011,3868.2,3867.4,3.6663943]
[1734046812665,1.77011,3868.2,3867.3,1.61759072]
[1734046812666,1.77011,3868.2,3867.6,2.58556]
[1734046812816,1.77011,3868.2,3867.5,1.0806843]
[1734046812817,1.3301,3868.2,3867.7,2.58549]
[1734046813371,0.8043,3868.7,3867.8,1.15453511]
[1734046813534,1.07219875,3868.7,3867.9,1.0806843]
[1734046813920,1.07219875,3868.7,3868.0,1.0806843]
[1734046814234,1.07219875,3868.7,3867.9,1.0806843]
[1734046814235,0.41421988,3868.6,3867.9,1.0806843]
[1734046814419,1.07219875,3868.7,3868.0,2.58529]
[1734046814804,1.071595,3869.6,3868.9,3.38455]
[1734046815066,0.8043,3869.7,3869.1,3.73910511]
[1734046815251,0.8043,3869.7,3869.2,2.58449]
[1734046816107,0.8043,3869.7,3869.1,1.15453511]
[1734046816325,0.8043,3869.7,3869.1,3.73910511]
[1734046817433,0.8043,3869.7,3869.1,2.58457]
[1734046817616,0.8043,3869.7,3868.9,0.7999]
[1734046817617,0.8043,3869.7,3869.2,2.58449]
[1734046818412,0.8043,3869.7,3868.9,2.00671487]
[1734046818645,0.7889,3870.1,3869.2,2.34288858]
[1734046818820,0.7889,3870.1,3869.4,3.0]
[1734046819020,0.7889,3870.1,3869.5,0.52402408]
[1734046819329,1.60739251,3871.3,3869.5,0.52402408]
[1734046819330,0.7889,3870.4,3869.6,3.09488858]
[1734046820142,0.7889,3870.4,3869.8,2.58405]
[1734046820361,0.7889,3870.4,3869.9,2.58402]
[1734046821560,0.7889,3870.4,3869.7,2.58417]
[1734046822177,0.7889,3870.4,3869.6,3.09488858]
[1734046822461,0.82119845,3870.4,3869.6,0.752]
[1734046822646,0.7889,3870.4,3869.6,0.752]
[1734046824018,0.7889,3870.4,3869.7,2.58417]
[1734046829232,0.7889,3870.4,3869.6,1.38563]
[1734046829669,0.7889,3870.4,3869.2,0.8214]
[1734046829853,0.8238,3870.2,3868.7,5.74906858]
[1734046830062,3.65229843,3870.3,3868.7,3.16428858]
[1734046830063,0.8238,3869.9,3868.7,3.16428858]
[1734046830270,0.8238,3869.9,3869.0,2.58463]
[1734046830632,0.8238,3869.9,3868.7,3.16428858]
[1734046830827,0.03230352,3869.8,3868.7,5.74906858]
[1734046831053,0.03230352,3869.8,3868.8,3.0]
[1734046831054,0.8147,3869.7,3868.8,3.0]
[1734046831280,0.55,3869.6,3868.8,0.92656714]
[1734046831492,0.8147,3869.5,3868.5,2.58496]
[1734046831888,0.8147,3869.5,3868.3,3.12668858]
[1734046832095,0.8147,3869.5,3868.9,2.58467]
[1734046832333,0.8147,3869.8,3869.1,2.34288858]
[1734046832490,0.8147,3869.8,3869.3,2.5844]
[1734046832853,0.8147,3869.8,3869.2,3.0]
[1734046833207,0.8147,3869.8,3869.2,4.09274586]
[1734046834747,0.8147,3869.8,3869.1,5.34288858]
[1734046835558,0.8147,3869.8,3869.1,4.92744858]
[1734046835801,0.8147,3869.8,3869.2,3.0]
[1734046836546,0.8147,3869.8,3869.1,4.92744858]
[1734046836547,0.8147,3869.8,3869.1,2.34288858]
[1734046837002,0.8147,3869.8,3869.2,3.0]
[1734046837199,0.8147,3869.8,3869.2,3.83428886]
[1734046837412,0.8147,3869.8,3869.3,2.58443]
[1734046837603,0.8147,3869.8,3869.4,2.58434]
[1734046837762,3.07,3870.1,3869.4,2.58434]
[1734046837763,3.07,3870.1,3869.4,0.7556]
[1734046837963,3.07,3870.1,3869.5,0.71743289]
[1734046838570,3.07,3870.1,3869.8,2.58409]
[1734046839625,0.8274,3870.5,3869.8,2.58409]
[1734046841619,0.8274,3870.5,3869.9,2.58403]
[1734046841823,0.8274,3870.5,3869.9,2.34288858]
[1734046842014,0.8274,3870.5,3870.0,3.23428886]
[1734046842321,0.8274,3870.5,3869.6,3.0]
[1734046843720,0.7882,3870.8,3870.0,2.58396]
[1734046844127,0.7882,3870.8,3869.9,2.34288858]
[1734046844295,0.24098422,3870.7,3869.9,2.34288858]
[1734046844483,0.7882,3870.8,3869.9,5.79582844]
[1734046844681,0.7882,3870.8,3869.9,3.21180844]
[1734046844910,0.55,3870.7,3870.0,2.58394]
[1734046845440,0.7882,3870.8,3870.2,2.58378]
[1734046845637,0.7882,3870.8,3870.3,0.558378]
[1734046846412,0.7882,3870.8,3870.0,3.0]
[1734046846811,0.7882,3870.8,3870.0,2.58397]
[1734046847347,0.7882,3870.8,3870.1,3.0]
[1734046847643,0.7882,3870.8,3870.0,2.58391]
[1734046847843,0.7882,3870.8,3870.1,3.34528299]
[1734046848614,0.7882,3870.8,3870.1,2.92919299]
[1734046850013,0.7882,3870.8,3869.9,0.86891986]
[1734046850262,0.7882,3870.8,3869.5,2.34288858]
[1734046850263,0.7882,3870.4,3869.5,2.34288858]
[1734046850427,0.55,3870.1,3869.0,2.71498557]
[1734046850617,0.55,3870.1,3869.1,2.93224856]
[1734046850618,0.7882,3870.0,3869.1,2.93224856]
[1734046850816,0.7882,3870.0,3869.2,2.58451]
[1734046851319,0.7882,3870.0,3869.2,2.34288858]
[1734046851615,0.7882,3870.0,3869.6,2.58424]
[1734046851818,0.7882,3870.0,3869.7,2.842554]
[1734046852528,2.58339,3870.9,3869.8,2.58411]
[1734046852529,1.3308,3870.5,3869.8,2.58411]